fUSD/lending_fUSD_20260213
["ID","MTS","AMOUNT","RATE_DAILY","PERIOD"]
[405297450,1770965440712,-500.0,0.00010971,3]
[405297452,1770965440720,-222.18597751,0.00010971,3]
[405297454,1770965440731,-1342.0,0.00010975,2]
[405297456,1770965440739,-500.0,0.00010975,2]
[405297458,1770965440749,-2290.38775466,0.00010999,2]
[405297460,1770965440758,-4609.0,0.00011007,2]
[405297461,1770965440767,-200.0,0.00011026,3]
[405297464,1770965440783,-145.15375218,0.00011026,3]
[405297467,1770965440799,-314.27349996,0.00011026,3]
[405297496,1770965441061,-40.57274786,0.00011026,3]
[405297498,1770965441070,-377.97514917,0.0001103,2]
[405297500,1770965441086,-964.02485083,0.0001103,2]
[405297502,1770965441095,-500.0,0.0001103,2]
[405297505,1770965441104,-300.0,0.00011039,7]
[405297507,1770965441114,-1303.23514917,0.00011055,2]
[405297509,1770965441126,-731.49514284,0.00011055,2]
[405297512,1770965441150,-690.78981421,0.00011055,2]
[405297514,1770965441159,-169.616,0.00011056,2]
[405297516,1770965441169,-587.357,0.00011056,2]
[405297518,1770965441178,-166.66,0.00011068,2]
[405297520,1770965441188,-60.57718579,0.0001108,3]
[405297573,1770965443619,-139.42281421,0.0001108,3]
[405297574,1770965443629,-316.63739434,0.0001108,3]
[405297575,1770965443639,-1342.0,0.00011085,2]
[405297576,1770965443649,-409.18784643,0.00011085,2]
[405297577,1770965443662,-90.81215357,0.00011085,2]
[405297578,1770965443671,-874.23784643,0.00011099,2]
[405297582,1770965445767,-3852.06258054,0.00011099,2]
[405297583,1770965445779,-327.41395545,0.00011099,2]
[405297584,1770965445830,-1024.7506159,0.00011099,2]
[405297585,1770965445938,-9730.00000024,0.00011099,2]
[405297591,1770965598393,216.55,7.5e-05,2]
[405297594,1770965742945,153.13440166,7.492e-05,2]
[405297595,1770965865832,1000.0,0.0001,5]
[405297598,1770965951500,212.13,7.5e-05,2]
[405297628,1770966631879,-300.0,7.516e-05,2]
[405297629,1770966631888,-1200.0,7.516e-05,2]
[405297630,1770966631897,-93.65969879,7.516e-05,2]
[405297631,1770966631908,-206.34030121,7.516e-05,2]
[405297632,1770966631918,-2729.52838755,7.517e-05,2]
[405297633,1770966631928,-279.79428379,7.517e-05,2]
[405297634,1770966631939,-2135.01,7.517e-05,2]
[405297635,1770966631966,-2240.40422898,7.517e-05,2]
[405297636,1770966631975,-261.46845798,7.517e-05,2]
[405297637,1770966631984,-500.0,7.518e-05,2]
[405297638,1770966631993,-150.0,7.855e-05,2]
[405297639,1770966632003,-413.10429209,7.856e-05,2]
[405297640,1770966632012,-134.77817739,7.856e-05,2]
[405297641,1770966638035,-124.83315701,7.856e-05,2]
[405297642,1770966638045,-500.0,7.856e-05,2]
[405297643,1770966638055,-265.17681558,7.856e-05,2]
[405297644,1770966638065,-264.37293913,7.856e-05,2]
[405297645,1770966638076,-258.79151065,7.856e-05,2]
[405297646,1770966638086,-523.16444978,7.856e-05,2]
[405297647,1770966638096,-235.83064809,7.856e-05,2]
[405297648,1770966638107,-523.16444978,7.856e-05,2]
[405297649,1770966638116,-523.16444978,7.856e-05,2]
[405297650,1770966638126,-523.16444978,7.856e-05,2]
[405297651,1770966638135,-523.16444978,7.856e-05,2]
[405297652,1770966638146,-523.16444978,7.856e-05,2]
[405297653,1770966638156,-523.16444978,7.856e-05,2]
[405297654,1770966638166,-523.16444978,7.856e-05,2]
[405297655,1770966638176,-523.16444978,7.856e-05,2]
[405297656,1770966638185,-523.16444978,7.856e-05,2]
[405297657,1770966638199,-523.16444978,7.856e-05,2]
[405297658,1770966638209,-523.16444978,7.856e-05,2]
[405297659,1770966638219,-523.16444978,7.856e-05,2]
[405297661,1770966638228,-523.16444978,7.856e-05,2]
[405297663,1770966638237,-523.16444978,7.856e-05,2]
[405297665,1770966638247,-523.16444978,7.856e-05,2]
[405297667,1770966638257,-523.16444978,7.856e-05,2]
[405297669,1770966638267,-523.16444978,7.856e-05,2]
[405297671,1770966638277,-523.16444978,7.856e-05,2]
[405297673,1770966638287,-523.16444978,7.856e-05,2]
[405297675,1770966638296,-523.16444978,7.856e-05,2]
[405297677,1770966638306,-523.16444978,7.856e-05,2]
[405297679,1770966638315,-523.16444978,7.856e-05,2]
[405297681,1770966638325,-523.16444978,7.856e-05,2]
[405297683,1770966638335,-523.16444978,7.856e-05,2]
[405297685,1770966638345,-523.16444978,7.856e-05,2]
[405297687,1770966638355,-523.16444978,7.856e-05,2]
[405297689,1770966638364,-523.16444978,7.856e-05,2]
[405297691,1770966638374,-523.16444978,7.856e-05,2]
[405297693,1770966638384,-523.16444978,7.856e-05,2]
[405297695,1770966638394,-523.16444978,7.856e-05,2]
[405297697,1770966638404,-523.16444978,7.856e-05,2]
[405297699,1770966638413,-523.16444978,7.856e-05,2]
[405297701,1770966638423,-523.16444978,7.856e-05,2]
[405297703,1770966638433,-523.16444978,7.856e-05,2]
[405297705,1770966638443,-523.16444978,7.856e-05,2]
[405297707,1770966638452,-523.16444978,7.856e-05,2]
[405297709,1770966638461,-523.16444978,7.856e-05,2]
[405297711,1770966638471,-523.16444978,7.856e-05,2]
[405297713,1770966638481,-523.16444978,7.856e-05,2]
[405297715,1770966638490,-523.16444978,7.856e-05,2]
[405297717,1770966638500,-523.16444978,7.856e-05,2]
[405297719,1770966638509,-523.16444978,7.856e-05,2]
[405297721,1770966638519,-523.16444978,7.856e-05,2]
[405297723,1770966638529,-523.16444978,7.856e-05,2]
[405297725,1770966638538,-523.16444978,7.856e-05,2]
[405297727,1770966638548,-523.16444978,7.856e-05,2]
[405297729,1770966638558,-523.16444978,7.856e-05,2]
[405297731,1770966638567,-523.16444978,7.856e-05,2]
[405297732,1770966638580,-523.16444978,7.856e-05,2]
[405297733,1770966638591,-523.16444978,7.856e-05,2]
[405297734,1770966638601,-523.16444978,7.856e-05,2]
[405297735,1770966638611,-523.16444978,7.856e-05,2]
[405297736,1770966638621,-523.16444978,7.856e-05,2]
[405297737,1770966638631,-523.16444978,7.856e-05,2]
[405297738,1770966638641,-523.16444978,7.856e-05,2]
[405297739,1770966638651,-523.16444978,7.856e-05,2]
[405297740,1770966638661,-523.16444978,7.856e-05,2]
[405297741,1770966638670,-516.41394076,7.856e-05,2]
[405297742,1770966638679,-516.41394076,7.856e-05,2]
[405297743,1770966638689,-516.41394076,7.856e-05,2]
[405297745,1770966638699,-516.41394076,7.856e-05,2]
[405297746,1770966638708,-516.41394076,7.856e-05,2]
[405297747,1770966638717,-516.41394076,7.856e-05,2]
[405297748,1770966638726,-516.41394076,7.856e-05,2]
[405297749,1770966638735,-516.41394076,7.856e-05,2]
[405297751,1770966638750,-516.41394076,7.856e-05,2]
[405297753,1770966638759,-516.41394076,7.856e-05,2]
[405297755,1770966638769,-516.41394076,7.856e-05,2]
[405297757,1770966638778,-516.41394076,7.856e-05,2]
[405297759,1770966638789,-516.41394076,7.856e-05,2]
[405297761,1770966638799,-516.41394076,7.856e-05,2]
[405297763,1770966638810,-516.41394076,7.856e-05,2]
[405297765,1770966638820,-516.41394076,7.856e-05,2]
[405297767,1770966638830,-516.41394076,7.856e-05,2]
[405297769,1770966638839,-516.41394076,7.856e-05,2]
[405297771,1770966638849,-516.41394076,7.856e-05,2]
[405297773,1770966638859,-516.41394076,7.856e-05,2]
[405297775,1770966638868,-516.41394076,7.856e-05,2]
[405297776,1770966638879,-516.41394076,7.856e-05,2]
[405297777,1770966638888,-516.41394076,7.856e-05,2]
[405297778,1770966638898,-516.41394076,7.856e-05,2]
[405297779,1770966638909,-516.41394076,7.856e-05,2]
[405297780,1770966638919,-516.41394076,7.856e-05,2]
[405297781,1770966638929,-516.41394076,7.856e-05,2]
[405297782,1770966638938,-516.41394076,7.856e-05,2]
[405297783,1770966638948,-516.41394076,7.856e-05,2]
[405297784,1770966638957,-516.41394069,7.856e-05,2]
[405297785,1770966638969,-516.41394068,7.856e-05,2]
[405297786,1770966638979,-42677.9759229,7.857e-05,2]
[405297787,1770966638991,-1064.40417485,7.857e-05,2]
[405297788,1770966639009,-334.04686668,7.857e-05,2]
[405297789,1770966639028,-110758.52712505,7.857e-05,2]
[405297790,1770966640104,-429.22884342,7.857e-05,2]
[405297791,1770966640116,-5113.4923212,7.857e-05,2]
[405297792,1770966640128,-254.35801595,7.857e-05,2]
[405297793,1770966640140,-636.27605668,7.857e-05,2]
[405297794,1770966640279,-3338731.69067327,7.857e-05,2]
[405297795,1770966640288,-1179.031,7.957e-05,2]
[405297796,1770966640297,-159.154,7.957e-05,2]
[405297797,1770966640306,-1759.01160543,7.957e-05,2]
[405297798,1770966640314,-9228.84781103,7.957e-05,2]
[405297799,1770966640324,-1060.97311806,7.957e-05,2]
[405297800,1770966640333,-1068.04075167,8.019e-05,2]
[405297801,1770966640342,-156.326,8.117e-05,2]
[405297802,1770966640351,-605.86923825,8.118e-05,2]
[405297803,1770966640360,-500.0,8.219e-05,2]
[405297804,1770966640369,-413.39009913,8.219e-05,2]
[405297805,1770966640377,-500.0,8.219e-05,2]
[405297806,1770966640386,-500.0,8.219e-05,2]
[405297807,1770966640396,-155.0,8.233e-05,2]
[405297808,1770966640406,-250.0,8.268e-05,2]
[405297809,1770966640416,-250.0,8.268e-05,2]
[405297810,1770966640425,-354.73326974,8.268e-05,2]
[405297811,1770966640435,-420.0,8.268e-05,2]
[405297812,1770966640444,-1680.0,8.268e-05,2]
[405297813,1770966640454,-420.0,8.268e-05,2]
[405297814,1770966640465,-155.0,8.349e-05,2]
[405297815,1770966640474,-155.0,8.465e-05,2]
[405297816,1770966640485,-500.0,8.493e-05,2]
[405297817,1770966640495,-155.0,8.581e-05,2]
[405297818,1770966640504,-255.0,8.64e-05,2]
[405297819,1770966640514,-390.54,8.65e-05,2]
[405297820,1770966640523,-155.0,8.697e-05,2]
[405297821,1770966640533,-2372.95,8.747e-05,2]
[405297822,1770966640542,-1799.66,8.747e-05,2]
[405297823,1770966640552,-500.0,8.767e-05,2]
[405297824,1770966640561,-155.0,8.813e-05,2]
[405297825,1770966640570,-155.0,8.929e-05,2]
[405297826,1770966640580,-500.0,9.041e-05,2]
[405297827,1770966640589,-2351.0,9.094e-05,2]
[405297828,1770966640599,-587.0,9.094e-05,2]
[405297829,1770966640609,-500.0,9.25e-05,2]
[405297830,1770966640618,-500.0,9.315e-05,2]
[405297831,1770966640628,-1000.0,9.343e-05,2]
[405297832,1770966640638,-361.63,9.375e-05,2]
[405297833,1770966640657,-210.13,9.42e-05,2]
[405297834,1770966640666,-433.0,9.505e-05,2]
[405297835,1770966640675,-500.0,9.507e-05,2]
[405297836,1770966640684,-500.0,9.589e-05,2]
[405297837,1770966640694,-390.54,9.732e-05,2]
[405297838,1770966640704,-155.0,9.74e-05,2]
[405297839,1770966640713,-1852.42,9.795e-05,2]
[405297840,1770966640722,-500.0,9.863e-05,2]
[405297841,1770966640732,-89408.726,9.942e-05,2]
[405297842,1770966640745,-830.58568443,9.948e-05,2]
[405297843,1770966640754,-500.0,0.0001,2]
[405297844,1770966640764,-476.74248889,0.0001,2]
[405297845,1770966640774,-500.0,0.0001,2]
[405297846,1770966640785,-151.0,0.0001,2]
[405297847,1770966640794,-500.0,0.0001,2]
[405297848,1770966640803,-151.0,0.0001,2]
[405297849,1770966640815,-151.0,0.0001,2]
[405297850,1770966640824,-500.0,0.0001,2]
[405297851,1770966640834,-151.0,0.0001,2]
[405297852,1770966640843,-556.8619989,0.0001,2]
[405297853,1770966640854,-151.0,0.0001,2]
[405297854,1770966640864,-151.0,0.0001,2]
[405297855,1770966640873,-200.0,0.0001,2]
[405297856,1770966640882,-151.0,0.0001,2]
[405297857,1770966640892,-151.0,0.0001,2]
[405297858,1770966640901,-151.0,0.0001,2]
[405297859,1770966640911,-200.0,0.0001,2]
[405297860,1770966640926,-151.0,0.0001,2]
[405297861,1770966640935,-151.0,0.0001,2]
[405297862,1770966640945,-151.0,0.0001,2]
[405297863,1770966640955,-151.0,0.0001,2]
[405297864,1770966640965,-151.0,0.0001,2]
[405297865,1770966640974,-151.0,0.0001,2]
[405297866,1770966640983,-151.0,0.0001,2]
[405297867,1770966640993,-151.0,0.0001,2]
[405297868,1770966641005,-151.0,0.0001,2]
[405297869,1770966641015,-151.0,0.0001,2]
[405297870,1770966641026,-158.66160544,0.0001,2]
[405297871,1770966641037,-500.0,0.0001,2]
[405297872,1770966641048,-151.0,0.0001,2]
[405297873,1770966641059,-151.0,0.0001,2]
[405297874,1770966641071,-151.0,0.0001,2]
[405297875,1770966641080,-151.0,0.0001,2]
[405297876,1770966641091,-151.0,0.0001,2]
[405297877,1770966641101,-151.0,0.0001,2]
[405297878,1770966641112,-151.0,0.0001,2]
[405297879,1770966641128,-151.0,0.0001,2]
[405297880,1770966641138,-151.0,0.0001,2]
[405297881,1770966641148,-151.0,0.0001,2]
[405297882,1770966641158,-151.0,0.0001,2]
[405297883,1770966641168,-151.0,0.0001,2]
[405297884,1770966641177,-391.07201462,0.0001,2]
[405297885,1770966641187,-391.07201462,0.0001,2]
[405297886,1770966641196,-567.18077762,0.0001,2]
[405297887,1770966641206,-567.18077762,0.0001,2]
[405297888,1770966641216,-3292.0,0.00010004,2]
[405297889,1770966641226,-823.0,0.00010004,2]
[405297890,1770966641235,-610.0,0.00010013,2]
[405297891,1770966641245,-10605.35,0.00010048,2]
[405297892,1770966641254,-1357.82,0.00010096,2]
[405297893,1770966641264,-321.19050027,0.00010137,2]
[405297894,1770966641274,-166.66,0.00010317,2]
[405297895,1770966641283,-323.26075896,0.00010324,2]
[405297896,1770966641294,-2500.0,0.00010375,2]
[405297897,1770966641304,-736.0,0.00010455,2]
[405297898,1770966641318,-345.76,0.00010475,2]
[405297899,1770966641328,-259.38,0.00010475,2]
[405297900,1770966641338,-9999.99,0.00010475,2]
[405297901,1770966641348,-83405.78,0.00010475,2]
[405297902,1770966641358,-150.99,0.00010475,2]
[405297903,1770966641368,-150.99,0.00010475,2]
[405297904,1770966641377,-9999.99,0.00010475,2]
[405297905,1770966641387,-1000.0,0.00010511,2]
[405297906,1770966641397,-151.0,0.00010547,2]
[405297907,1770966641407,-629.1569637,0.00010548,2]
[405297908,1770966641418,-7446.19,0.0001055,2]
[405297909,1770966641428,-166.66,0.00010657,2]
[405297910,1770966641438,-500.0,0.00010666,2]
[405297911,1770966641448,-279.0,0.00010666,2]
[405297912,1770966641458,-500.0,0.00010685,2]
[405297913,1770966641468,-150.0,0.00010811,2]
[405297914,1770966641479,-150.0,0.00010811,2]
[405297915,1770966641489,-150.0,0.00010811,2]
[405297916,1770966641499,-150.0,0.00010811,2]
[405297917,1770966641513,-150.0,0.00010811,2]
[405297918,1770966641523,-186.43025608,0.00010811,2]
[405297919,1770966641533,-150.0,0.00010811,2]
[405297920,1770966641542,-150.0,0.00010811,2]
[405297921,1770966641552,-150.0,0.00010811,2]
[405297922,1770966641562,-150.0,0.00010811,2]
[405297923,1770966641572,-150.0,0.00010811,2]
[405297924,1770966641582,-1106.0,0.00010811,2]
[405297925,1770966641591,-150.0,0.00010811,2]
[405297926,1770966641602,-500.0,0.00010811,2]
[405297927,1770966641612,-390.54,0.00010813,2]
[405297928,1770966641622,-366.0,0.00010835,2]
[405297929,1770966641632,-150.0,0.00010866,2]
[405297930,1770966641642,-150.0,0.00010866,2]
[405297931,1770966641657,-150.0,0.00010866,2]
[405297932,1770966641669,-150.0,0.00010866,2]
[405297933,1770966641681,-222.59637125,0.00010866,2]
[405297934,1770966641691,-150.0,0.00010866,2]
[405297935,1770966641702,-150.0,0.00010866,2]
[405297936,1770966641712,-150.0,0.00010866,2]
[405297937,1770966641722,-150.0,0.00010866,2]
[405297938,1770966641731,-150.0,0.00010866,2]
[405297939,1770966641741,-150.0,0.00010866,2]
[405297940,1770966641753,-1106.0,0.00010866,2]
[405297941,1770966641763,-500.0,0.00010866,2]
[405297942,1770966641772,-200.0,0.00010921,2]
[405297943,1770966641783,-200.0,0.00010921,2]
[405297944,1770966641793,-150.0,0.00010921,2]
[405297945,1770966641802,-150.0,0.00010921,2]
[405297946,1770966641812,-150.0,0.00010921,2]
[405297947,1770966641824,-150.0,0.00010921,2]
[405297948,1770966641834,-200.0,0.00010921,2]
[405297949,1770966641843,-200.0,0.00010921,2]
[405297950,1770966641852,-200.0,0.00010921,2]
[405297951,1770966641862,-267.0,0.00010921,2]
[405297952,1770966641872,-1106.0,0.00010921,2]
[405297953,1770966641882,-500.0,0.00010921,2]
[405297954,1770966641891,-166.66,0.00010959,2]
[405297955,1770966641900,-243.0,0.00010965,2]
[405297956,1770966641910,-157.78924877,0.00010975,2]
[405297957,1770966641921,-150.0,0.00010975,2]
[405297958,1770966641932,-150.0,0.00010975,2]
[405297959,1770966641942,-150.0,0.00010975,2]
[405297960,1770966641951,-1106.0,0.00010975,2]
[405297961,1770966641961,-309.390678,0.00010975,2]
[405297962,1770966641971,-151.0,0.00010996,2]
[405297963,1770966641980,-166.66,0.00010998,2]
[405297964,1770966641990,-1499913.9232659,0.00010999,2]
[405297965,1770966642031,-86.0767341,0.00010999,2]
[405297966,1770966642041,-216.21673448,0.00010999,2]
[405297967,1770966642052,-31212.84940385,0.00010999,2]
[405297975,1770966645510,-4887.84454158,0.00010999,2]
[405297993,1770966646029,-1579.15545842,0.00010999,2]
[405297994,1770966646040,-1403.05886167,0.00010999,2]
[405297995,1770966646051,-714.9205424,0.00010999,2]
[405297996,1770966646123,-285.0794576,0.00010999,2]
[405297997,1770966646133,-391.07201462,0.00010999,2]
[405297998,1770966646143,-1780.3172089,0.00011004,2]
[405298006,1770966770157,500.0,7.416e-05,2]
[405298024,1770967292424,1115.655,7.502e-05,2]
[405298025,1770967292457,156.028,7.502e-05,2]
[405298032,1770967630756,678.69,6.665e-05,2]
[405298033,1770967630957,678.69,6.816e-05,2]
[405298034,1770967631153,678.69,6.966e-05,2]
[405298035,1770967631348,678.69,7.116e-05,2]
[405298036,1770967631552,678.69,7.267e-05,2]
[405298037,1770967631762,678.69,7.417e-05,2]
[405298044,1770967742064,300.0,7.554e-05,2]
[405298060,1770967801519,300.0,7.554e-05,2]
[405298061,1770967801559,1200.0,7.554e-05,2]
[405298062,1770967802154,150.0,7.554e-05,2]
[405298063,1770967802190,300.0,7.554e-05,2]
[405298064,1770967802231,300.0,7.554e-05,2]
[405298077,1770967832027,-605.71259571,7.555e-05,2]
[405298080,1770967832039,-579.76289887,7.555e-05,2]
[405298082,1770967832051,-1581.17296328,7.555e-05,2]
[405298084,1770967832063,-6378.6829831,7.555e-05,2]
[405298086,1770967832082,-371604.45175739,7.555e-05,2]
[405298087,1770967832094,-73949.7838439,7.555e-05,2]
[405298088,1770967832105,-1254.41808677,7.555e-05,2]
[405298089,1770967832124,-1182.65432573,7.555e-05,2]
[405298090,1770967832136,-972.66991975,7.555e-05,2]
[405298091,1770967832147,-613.06764402,7.555e-05,2]
[405298092,1770967832184,-259.39015822,7.555e-05,2]
[405298093,1770967832195,-1688.52199259,7.555e-05,2]
[405298094,1770967832208,-729.51283028,7.555e-05,2]
[405298095,1770967832220,-708.50603005,7.555e-05,2]
[405298137,1770967838090,-269.39293295,7.555e-05,2]
[405298138,1770967838152,-2129.3954927,7.555e-05,2]
[405298139,1770967838165,-340.7948031,7.555e-05,2]
[405298140,1770967838213,-4282.22884414,7.555e-05,2]
[405298179,1770967842572,-300.0,0.00010795,14]
[405298204,1770967844194,-300.0,0.00010795,14]
[405298205,1770967845026,-300.0,0.00010795,14]
[405298206,1770967845874,-300.0,0.00010795,14]
[405298207,1770967846097,-11390.62499368,7.555e-05,2]
[405298211,1770967846276,-528.3757,7.555e-05,2]
[405298212,1770967846413,-330.57620117,7.555e-05,2]
[405298215,1770967846781,-300.0,0.00010795,14]
[405298221,1770967850968,-300.0,0.00010795,14]
[405298222,1770967852131,-300.0,0.00010795,14]
[405298223,1770967853368,-300.0,0.00010795,14]
[405298224,1770967860748,-300.0,0.00010795,14]
[405298225,1770967866364,-300.0,0.00010795,14]
[405298226,1770967871094,-300.0,0.00010795,14]
[405298227,1770967892288,-87.58,0.00010795,14]
[405298235,1770968536048,-180.0,7.454e-05,2]
[405298236,1770968536078,-1200.0,7.454e-05,2]
[405298237,1770968536106,-150.0,7.454e-05,2]
[405298238,1770968536134,-300.0,7.454e-05,2]
[405298239,1770968568597,-250.0,7.455e-05,2]
[405298240,1770968574589,-678.69,7.568e-05,2]
[405298241,1770968574611,-678.69,7.718e-05,2]
[405298242,1770968574644,-678.69,7.868e-05,2]
[405298243,1770968574666,-600.0,7.868e-05,2]
[405298244,1770968620621,-678.69,8.019e-05,2]
[405298245,1770968620644,-678.69,8.169e-05,2]
[405298246,1770968658332,-1680.0,8.199e-05,2]
[405298247,1770968658357,-255.0,8.199e-05,2]
[405298248,1770968658391,-250.0,8.199e-05,2]
[405298249,1770968658423,-250.0,8.199e-05,2]
[405298250,1770968658466,-193.65548983,8.199e-05,2]
[405298251,1770968658491,-194.62509925,8.199e-05,2]
[405298252,1770968681761,9500.01,7.355e-05,2]
[405298253,1770968681789,10000.01,7.355e-05,2]
[405298254,1770968681835,10000.01,7.355e-05,2]
[405298255,1770968681871,10000.01,7.355e-05,2]
[405298256,1770968681903,10000.01,7.355e-05,2]
[405298257,1770968681935,10000.01,7.355e-05,2]
[405298258,1770968681964,10000.01,7.355e-05,2]
[405298259,1770968681994,10000.01,7.355e-05,2]
[405298260,1770968682024,9518.4208,7.355e-05,2]
[405298262,1770968824246,-10000.0,7.583e-05,2]
[405298263,1770968828840,-10000.0,7.583e-05,2]
[405298264,1770968831188,-10000.0,7.583e-05,2]
[405298265,1770968831593,200.0,9e-05,3]
[405298266,1770968840205,-10000.0,7.583e-05,2]
[405298267,1770968842134,-10000.0,7.583e-05,2]
[405298269,1770968845394,-10000.0,7.583e-05,2]
[405298270,1770968847364,-10000.0,7.583e-05,2]
[405298272,1770968848722,-10000.0,7.583e-05,2]
[405298273,1770968860908,-10000.0,7.583e-05,2]
[405298274,1770968905808,-300.0,7.582e-05,2]
[405298275,1770968905829,-150.0,7.582e-05,2]
[405298276,1770968905851,-9550.0,7.583e-05,2]
[405298277,1770968908677,-10000.0,7.583e-05,2]
[405298278,1770968915927,-1400.0,7.583e-05,2]
[405298279,1770968947803,-300.0,7.582e-05,2]
[405298280,1770968947825,-600.0,7.583e-05,2]
[405298294,1770968974258,227.55432927,0.00022,120]
[405298300,1770969032270,-299.99,7.582e-05,2]
[405298301,1770969032282,-0.01,7.582e-05,2]
[405298302,1770969032292,-303.989998,7.582e-05,2]
[405298303,1770969032304,-706.49,7.582e-05,2]
[405298304,1770969032316,-189.520002,7.582e-05,2]
[405298305,1770969032326,-7948.17738267,7.583e-05,2]
[405298306,1770969032341,-17229.4136985,7.583e-05,2]
[405298307,1770969032352,-911.72705474,7.583e-05,2]
[405298308,1770969032371,-875.3513479,7.583e-05,2]
[405298309,1770969032387,-218758.39866619,7.583e-05,2]
[405298310,1770969032396,-678.69,8.319e-05,2]
[405298311,1770969032406,-206.64976969,8.321e-05,2]
[405298312,1770969032415,-1852.42,8.323e-05,2]
[405298313,1770969032427,-2539.75,8.328e-05,2]
[405298314,1770969032438,-255.0,8.34e-05,2]
[405298315,1770969032448,-420.0,8.34e-05,2]
[405298316,1770969032457,-1680.0,8.34e-05,2]
[405298317,1770969032468,-250.0,8.341e-05,2]
[405298318,1770969032478,-678.69,8.47e-05,2]
[405298319,1770969032488,-166.67,8.504e-05,2]
[405298321,1770969032497,-151.0,8.517e-05,2]
[405298323,1770969032507,-89824.19,8.52e-05,2]
[405298325,1770969032516,-678.69,8.62e-05,2]
[405298327,1770969032525,-9999.99,8.62e-05,2]
[405298328,1770969032538,-9999.99,8.62e-05,2]
[405298330,1770969032547,-9022.34,8.62e-05,2]
[405298332,1770969032557,-678.69,8.77e-05,2]
[405298334,1770969032566,-150.99,8.77e-05,2]
[405298335,1770969032576,-5731.75,8.77e-05,2]
[405298336,1770969032586,-999.99,8.77e-05,2]
[405298337,1770969032596,-154.43360262,8.847e-05,2]
[405298338,1770969032607,-500.0,8.849e-05,2]
[405298339,1770969032616,-500.0,8.849e-05,2]
[405298340,1770969032626,-500.0,8.849e-05,2]
[405298341,1770969032636,-451.702041,8.849e-05,2]
[405298342,1770969032646,-500.0,8.849e-05,2]
[405298343,1770969032657,-500.0,8.849e-05,2]
[405298344,1770969032667,-500.0,8.849e-05,2]
[405298345,1770969032678,-500.0,8.849e-05,2]
[405298346,1770969032688,-500.0,8.849e-05,2]
[405298347,1770969032699,-500.0,8.849e-05,2]
[405298348,1770969032710,-500.0,8.849e-05,2]
[405298349,1770969032719,-500.0,8.849e-05,2]
[405298350,1770969032729,-500.0,8.849e-05,2]
[405298351,1770969032738,-500.0,8.849e-05,2]
[405298352,1770969032748,-500.0,8.849e-05,2]
[405298353,1770969032757,-500.0,8.849e-05,2]
[405298354,1770969032766,-500.0,8.849e-05,2]
[405298355,1770969032776,-500.0,8.849e-05,2]
[405298356,1770969032787,-500.0,8.849e-05,2]
[405298357,1770969032797,-500.0,8.849e-05,2]
[405298358,1770969032813,-500.0,8.849e-05,2]
[405298359,1770969032827,-500.0,8.849e-05,2]
[405298360,1770969032837,-500.0,8.849e-05,2]
[405298361,1770969032847,-500.0,8.849e-05,2]
[405298362,1770969032858,-350.0,8.849e-05,2]
[405298363,1770969032868,-500.0,8.849e-05,2]
[405298364,1770969032879,-500.0,8.849e-05,2]
[405298365,1770969032889,-500.0,8.849e-05,2]
[405298366,1770969032899,-500.0,8.849e-05,2]
[405298367,1770969032909,-500.0,8.849e-05,2]
[405298368,1770969032919,-500.0,8.849e-05,2]
[405298369,1770969032928,-500.0,8.849e-05,2]
[405298370,1770969032938,-500.0,8.849e-05,2]
[405298371,1770969032948,-500.0,8.849e-05,2]
[405298372,1770969032958,-500.0,8.849e-05,2]
[405298373,1770969032968,-500.0,8.849e-05,2]
[405298374,1770969032978,-419.10162787,8.849e-05,2]
[405298375,1770969032988,-500.0,8.849e-05,2]
[405298376,1770969032998,-500.0,8.849e-05,2]
[405298377,1770969033008,-500.0,8.849e-05,2]
[405298378,1770969033018,-500.0,8.849e-05,2]
[405298379,1770969033028,-401932.2016688,8.85e-05,2]
[405298380,1770969033038,-678.69,8.921e-05,2]
[405298381,1770969033048,-500.0,8.921e-05,2]
[405298382,1770969033057,-604.71,8.99e-05,2]